[Event "*** SCC Grand Prix: Titled Tuesday Blitz"]
[Site "Chess.com"]
[Date "2020.08.04"]
[Round "3"]
[White "Pultis"]
[Black "Fandorine"]
[Result "0-1"]
[WhiteElo "2720"]
[BlackElo "2908"]
[TimeControl "180+1"]
[EndTime "14:13:54 PDT"]
[Termination "Fandorine won by resignation"]

1. d4 {[%clk 0:03:00.9]} 1... Nf6 {[%clk 0:02:59.4]} 2. c4 {[%clk 0:03:00.6]}
2... g6 {[%clk 0:03:00.1]} 3. Nc3 {[%clk 0:02:59.2]} 3... Bg7 {[%clk 0:03:00.8]}
4. e4 {[%clk 0:02:58.9]} 4... d6 {[%clk 0:03:01.4]} 5. Nf3 {[%clk 0:02:59.1]}
5... O-O {[%clk 0:03:02]} 6. h3 {[%clk 0:02:59.6]} 6... e5 {[%clk 0:02:56.3]} 7.
d5 {[%clk 0:02:59.7]} 7... Nh5 {[%clk 0:02:56.6]} 8. Be3 {[%clk 0:02:57.1]} 8...
Na6 {[%clk 0:02:56.5]} 9. Nd2 {[%clk 0:02:56.4]} 9... Qe8 {[%clk 0:02:53.7]} 10.
Qc2 {[%clk 0:02:26.6]} 10... f5 {[%clk 0:02:50.9]} 11. f3 {[%clk 0:02:26.9]}
11... Ng3 {[%clk 0:02:48.3]} 12. Rg1 {[%clk 0:02:26.1]} 12... Nxf1 {[%clk
0:02:46.2]} 13. Rxf1 {[%clk 0:02:24.1]} 13... Nb4 {[%clk 0:02:42.8]} 14. Qb1
{[%clk 0:02:23.5]} 14... a5 {[%clk 0:02:43.3]} 15. a3 {[%clk 0:02:22.7]} 15...
Na6 {[%clk 0:02:43.9]} 16. Qc2 {[%clk 0:02:22.3]} 16... Bd7 {[%clk 0:02:44.5]}
17. O-O-O {[%clk 0:02:21]} 17... Qe7 {[%clk 0:02:43.3]} 18. Rde1 {[%clk
0:02:18.7]} 18... b6 {[%clk 0:02:41.3]} 19. f4 {[%clk 0:02:17.7]} 19... Nc5
{[%clk 0:02:39.9]} 20. Kb1 {[%clk 0:02:06.9]} 20... fxe4 {[%clk 0:02:30.7]} 21.
Ndxe4 {[%clk 0:02:04.9]} 21... Nxe4 {[%clk 0:02:25.8]} 22. Nxe4 {[%clk
0:02:05.8]} 22... Rae8 {[%clk 0:02:13.9]} 23. Bd2 {[%clk 0:01:58.7]} 23... exf4
{[%clk 0:02:10.4]} 24. Re2 {[%clk 0:01:38.2]} 24... Bf5 {[%clk 0:01:59.1]} 25.
Rfe1 {[%clk 0:01:38]} 25... Qh4 {[%clk 0:01:56.4]} 26. Ka2 {[%clk 0:01:33.2]}
26... f3 {[%clk 0:01:45.1]} 27. gxf3 {[%clk 0:01:32.4]} 27... Qxh3 {[%clk
0:01:44.5]} 28. Re3 {[%clk 0:01:25]} 28... Bxe4 {[%clk 0:01:29.3]} 29. fxe4
{[%clk 0:01:20.6]} 29... Rf3 {[%clk 0:01:29.6]} 30. Qa4 {[%clk 0:01:07]} 30...
Ref8 {[%clk 0:01:24.1]} 31. Qc6 {[%clk 0:01:04.1]} 31... Qg2 {[%clk 0:01:03.2]}
32. Bc1 {[%clk 0:00:59.6]} 32... Rf2 {[%clk 0:00:41.2]} 33. Rb3 {[%clk
0:00:54.2]} 33... R2f7 {[%clk 0:00:28.8]} 34. c5 {[%clk 0:00:36.2]} 34... bxc5
{[%clk 0:00:25.3]} 35. Rb7 {[%clk 0:00:36.6]} 35... Qf2 {[%clk 0:00:16.4]} 36.
Re3 {[%clk 0:00:24.2]} 36... Qf1 {[%clk 0:00:11]} 37. Kb1 {[%clk 0:00:24.3]}
37... Qg1 {[%clk 0:00:04.8]} 38. Re2 {[%clk 0:00:17.3]} 38... Rf1 {[%clk
0:00:04.6]} 39. Rc2 {[%clk 0:00:17.4]} 39... R1f7 {[%clk 0:00:02.5]} 40. Rxc7
{[%clk 0:00:16.6]} 40... Rxc7 {[%clk 0:00:03.4]} 41. Qxc7 {[%clk 0:00:17.4]}
41... Be5 {[%clk 0:00:04.3]} 42. Qd7 {[%clk 0:00:17.1]} 42... Qh1 {[%clk
0:00:04.1]} 43. Qe6+ {[%clk 0:00:17]} 43... Kg7 {[%clk 0:00:04.6]} 44. Qd7+
{[%clk 0:00:15]} 44... Rf7 {[%clk 0:00:04.8]} 45. Qg4 {[%clk 0:00:15.4]} 45...
h5 {[%clk 0:00:05]} 46. Qe2 {[%clk 0:00:15.5]} 46... Qf3 {[%clk 0:00:05.1]} 47.
Qc4 {[%clk 0:00:14.1]} 47... Qf1 {[%clk 0:00:04.2]} 48. Qa4 {[%clk 0:00:12.9]}
48... h4 {[%clk 0:00:04.7]} 49. Ka2 {[%clk 0:00:13]} 49... h3 {[%clk 0:00:05]}
50. Bg5 {[%clk 0:00:13]} 50... h2 {[%clk 0:00:04.9]} 51. Rxh2 {[%clk 0:00:13.2]}
51... Bxh2 {[%clk 0:00:05.8]} 52. Qb3 {[%clk 0:00:07]} 52... Be5 {[%clk
0:00:06]} 53. Qc2 {[%clk 0:00:07.5]} 53... a4 {[%clk 0:00:04]} 54. Qh2 {[%clk
0:00:07.4]} 54... Qc4+ {[%clk 0:00:03.8]} 55. Kb1 {[%clk 0:00:07.1]} 55... Rf1+
{[%clk 0:00:04.3]} 0-1

[Event "*** SCC Grand Prix: Titled Tuesday Blitz"]
[Site "Chess.com"]
[Date "2020.08.04"]
[Round "3"]
[White "Fh2411"]
[Black "xberli"]
[Result "1-0"]
[WhiteElo "2549"]
[BlackElo "2318"]
[TimeControl "180+1"]
[EndTime "14:13:54 PDT"]
[Termination "Fh2411 won on time"]

1. d4 {[%clk 0:03:00.8]} 1... Nf6 {[%clk 0:02:58.5]} 2. Nf3 {[%clk 0:03:01.1]}
2... g6 {[%clk 0:02:58.4]} 3. g3 {[%clk 0:03:01.4]} 3... Bg7 {[%clk 0:02:58.6]}
4. Bg2 {[%clk 0:03:02.3]} 4... O-O {[%clk 0:02:58.8]} 5. O-O {[%clk 0:03:03.2]}
5... c6 {[%clk 0:02:58.8]} 6. b3 {[%clk 0:03:03.8]} 6... d6 {[%clk 0:02:56.6]}
7. Bb2 {[%clk 0:03:03.9]} 7... Bf5 {[%clk 0:02:55.3]} 8. c4 {[%clk 0:02:48.7]}
8... Qd7 {[%clk 0:02:51.6]} 9. Re1 {[%clk 0:02:48.6]} 9... Bh3 {[%clk
0:02:44.9]} 10. Bh1 {[%clk 0:02:48.4]} 10... d5 {[%clk 0:02:27.4]} 11. Ne5
{[%clk 0:02:42.7]} 11... Qc8 {[%clk 0:02:26.9]} 12. Nc3 {[%clk 0:02:28.8]} 12...
dxc4 {[%clk 0:02:21]} 13. bxc4 {[%clk 0:02:23.6]} 13... Nbd7 {[%clk 0:02:20.3]}
14. Nxd7 {[%clk 0:02:22.4]} 14... Nxd7 {[%clk 0:02:10.8]} 15. Ne4 {[%clk
0:02:11.8]} 15... h6 {[%clk 0:01:54.3]} 16. Qb3 {[%clk 0:02:03]} 16... Qc7
{[%clk 0:01:49.1]} 17. Rab1 {[%clk 0:01:59.4]} 17... Rab8 {[%clk 0:01:39.6]} 18.
Bc3 {[%clk 0:01:55.6]} 18... Rfd8 {[%clk 0:01:33.3]} 19. Qa3 {[%clk 0:01:54.3]}
19... f5 {[%clk 0:01:24.9]} 20. Nd2 {[%clk 0:01:46]} 20... e5 {[%clk 0:01:24.4]}
21. d5 {[%clk 0:01:41.9]} 21... c5 {[%clk 0:01:19.9]} 22. Qxa7 {[%clk
0:01:37.6]} 22... e4 {[%clk 0:01:14.1]} 23. Bxg7 {[%clk 0:01:19.6]} 23... Kxg7
{[%clk 0:01:15]} 24. Qa3 {[%clk 0:01:19.2]} 24... b6 {[%clk 0:01:03.4]} 25. f3
{[%clk 0:01:17.9]} 25... Qe5 {[%clk 0:00:38]} 26. Qb2 {[%clk 0:00:59]} 26... e3
{[%clk 0:00:20.2]} 27. Nb3 {[%clk 0:00:53.3]} 27... f4 {[%clk 0:00:16.9]} 28.
gxf4 {[%clk 0:00:48.2]} 28... Qxb2 {[%clk 0:00:16.2]} 29. Rxb2 {[%clk
0:00:48.5]} 29... Bf5 {[%clk 0:00:17.1]} 30. Rc1 {[%clk 0:00:43]} 30... Ra8
{[%clk 0:00:15.7]} 31. Rc3 {[%clk 0:00:41.6]} 31... Re8 {[%clk 0:00:14.5]} 32.
Nc1 {[%clk 0:00:40.6]} 32... Ra4 {[%clk 0:00:12.6]} 33. Bg2 {[%clk 0:00:39.1]}
33... Kf6 {[%clk 0:00:12]} 34. h4 {[%clk 0:00:38]} 34... Ra5 {[%clk 0:00:08.3]}
35. Kh2 {[%clk 0:00:37.6]} 35... Ra4 {[%clk 0:00:08]} 36. Kg3 {[%clk 0:00:37.8]}
36... Ra5 {[%clk 0:00:07.1]} 37. Bh3 {[%clk 0:00:38.2]} 37... Bxh3 {[%clk
0:00:07]} 38. Kxh3 {[%clk 0:00:39.1]} 38... Kf5 {[%clk 0:00:07.2]} 39. Kg3
{[%clk 0:00:39.7]} 39... Nf6 {[%clk 0:00:07.5]} 40. Nd3 {[%clk 0:00:30.2]} 40...
Ra6 {[%clk 0:00:06.6]} 41. a3 {[%clk 0:00:24.8]} 41... Nh5+ {[%clk 0:00:05.9]}
42. Kh3 {[%clk 0:00:25.1]} 42... Nxf4+ {[%clk 0:00:06]} 43. Nxf4 {[%clk
0:00:26]} 43... Kxf4 {[%clk 0:00:06.9]} 44. Rcb3 {[%clk 0:00:25.4]} 44... g5
{[%clk 0:00:06]} 45. Rxb6 {[%clk 0:00:24.1]} 45... Rxa3 {[%clk 0:00:05.6]} 46.
Rxh6 {[%clk 0:00:20.7]} 46... Rc3 {[%clk 0:00:04]} 47. Rbb6 {[%clk 0:00:15.5]}
47... Kf5 {[%clk 0:00:01.2]} 48. Rbf6+ {[%clk 0:00:04]} 1-0

[Event "*** SCC Grand Prix: Titled Tuesday Blitz"]
[Site "Chess.com"]
[Date "2020.08.04"]
[Round "3"]
[White "chenxiaoyuer"]
[Black "grzechu96"]
[Result "0-1"]
[WhiteElo "2431"]
[BlackElo "2680"]
[TimeControl "180+1"]
[EndTime "14:13:59 PDT"]
[Termination "grzechu96 won by checkmate"]

1. e4 {[%clk 0:03:00.9]} 1... c5 {[%clk 0:03:00.1]} 2. Nf3 {[%clk 0:03:00.6]}
2... d6 {[%clk 0:02:59]} 3. d4 {[%clk 0:03:00.3]} 3... cxd4 {[%clk 0:02:59.9]}
4. Nxd4 {[%clk 0:02:59.8]} 4... a6 {[%clk 0:03:00.3]} 5. Nc3 {[%clk 0:02:55.3]}
5... e6 {[%clk 0:02:59.7]} 6. a4 {[%clk 0:02:52.4]} 6... Nf6 {[%clk 0:02:57.6]}
7. Be2 {[%clk 0:02:51.5]} 7... Be7 {[%clk 0:02:57]} 8. O-O {[%clk 0:02:51]} 8...
Nc6 {[%clk 0:02:57.5]} 9. Be3 {[%clk 0:02:50.5]} 9... O-O {[%clk 0:02:57.2]} 10.
f4 {[%clk 0:02:50.5]} 10... Qc7 {[%clk 0:02:51.2]} 11. Kh1 {[%clk 0:02:50.2]}
11... Re8 {[%clk 0:02:47.8]} 12. Bf3 {[%clk 0:02:49.2]} 12... Rb8 {[%clk
0:02:45.9]} 13. g4 {[%clk 0:02:42.4]} 13... Nd7 {[%clk 0:02:45.2]} 14. g5 {[%clk
0:02:34.9]} 14... Nb6 {[%clk 0:02:42.4]} 15. Qe2 {[%clk 0:02:06.6]} 15... Nb4
{[%clk 0:02:32.1]} 16. Nd1 {[%clk 0:01:35.7]} 16... Nc4 {[%clk 0:02:28.9]} 17.
Bc1 {[%clk 0:01:34.7]} 17... e5 {[%clk 0:02:18.4]} 18. Nf5 {[%clk 0:01:14.6]}
18... Bxf5 {[%clk 0:02:15.4]} 19. exf5 {[%clk 0:01:15.5]} 19... exf4 {[%clk
0:02:15.8]} 20. c3 {[%clk 0:01:04.1]} 20... Bf8 {[%clk 0:02:09.9]} 21. Qg2
{[%clk 0:00:51.8]} 21... Nd3 {[%clk 0:02:09]} 22. Bd5 {[%clk 0:00:31.7]} 22...
Nxc1 {[%clk 0:02:08.5]} 23. Rxc1 {[%clk 0:00:30.2]} 23... Ne5 {[%clk 0:01:46.4]}
24. Nf2 {[%clk 0:00:26.5]} 24... Kh8 {[%clk 0:01:39.1]} 25. Nh3 {[%clk
0:00:18.6]} 25... f3 {[%clk 0:01:37.8]} 26. Bxf3 {[%clk 0:00:16.9]} 26... Nxf3
{[%clk 0:01:38.1]} 27. Qxf3 {[%clk 0:00:16.6]} 27... Qc4 {[%clk 0:01:32.9]} 28.
Nf4 {[%clk 0:00:15.3]} 28... Qxa4 {[%clk 0:01:26.7]} 29. g6 {[%clk 0:00:15.3]}
29... fxg6 {[%clk 0:01:18.6]} 30. fxg6 {[%clk 0:00:15]} 30... Qe4 {[%clk
0:01:17.8]} 31. gxh7 {[%clk 0:00:10.5]} 31... Kxh7 {[%clk 0:01:05.8]} 32. Qxe4+
{[%clk 0:00:06.8]} 32... Rxe4 {[%clk 0:01:06.7]} 33. Rf3 {[%clk 0:00:07]} 33...
Rbe8 {[%clk 0:00:58.4]} 34. Rcf1 {[%clk 0:00:05.3]} 34... Re1 {[%clk 0:00:56.6]}
35. Kg2 {[%clk 0:00:05.1]} 35... Rxf1 {[%clk 0:00:56.5]} 36. Kxf1 {[%clk
0:00:04.9]} 36... Kg8 {[%clk 0:00:55.7]} 37. Nd5 {[%clk 0:00:04.2]} 37... Re5
{[%clk 0:00:53.2]} 38. Ne3 {[%clk 0:00:03.8]} 38... Be7 {[%clk 0:00:52.6]} 39.
Kf2 {[%clk 0:00:02.6]} 39... Bh4+ {[%clk 0:00:50.9]} 40. Kg2 {[%clk 0:00:02.7]}
40... Bg5 {[%clk 0:00:50.7]} 41. Nc4 {[%clk 0:00:02.9]} 41... Re2+ {[%clk
0:00:50.7]} 42. Rf2 {[%clk 0:00:03]} 42... Rxf2+ {[%clk 0:00:50.5]} 43. Kxf2
{[%clk 0:00:03.2]} 43... Bf4 {[%clk 0:00:49.4]} 44. h3 {[%clk 0:00:02.6]} 44...
Kf7 {[%clk 0:00:48.3]} 45. Kf3 {[%clk 0:00:02.6]} 45... Bh2 {[%clk 0:00:48.3]}
46. Ke4 {[%clk 0:00:02.7]} 46... Ke6 {[%clk 0:00:48.3]} 47. Nb6 {[%clk 0:00:03]}
47... Bg3 {[%clk 0:00:46.2]} 48. Nd5 {[%clk 0:00:03.1]} 48... Be5 {[%clk
0:00:42.6]} 49. c4 {[%clk 0:00:03.1]} 49... Bxb2 {[%clk 0:00:42.2]} 50. Nf4+
{[%clk 0:00:03.2]} 50... Kd7 {[%clk 0:00:40.7]} 51. Kd5 {[%clk 0:00:03.1]} 51...
a5 {[%clk 0:00:39.8]} 52. c5 {[%clk 0:00:02.3]} 52... a4 {[%clk 0:00:37.3]} 53.
cxd6 {[%clk 0:00:02]} 53... a3 {[%clk 0:00:37.6]} 54. Nd3 {[%clk 0:00:02.1]}
54... a2 {[%clk 0:00:18.7]} 55. Ne5+ {[%clk 0:00:02.2]} 55... Bxe5 {[%clk
0:00:13.4]} 56. Kxe5 {[%clk 0:00:02.4]} 56... a1=Q+ {[%clk 0:00:13.9]} 57. Kf5
{[%clk 0:00:03.3]} 57... Kxd6 {[%clk 0:00:13.7]} 58. Kg6 {[%clk 0:00:03.5]}
58... Qf6+ {[%clk 0:00:14.6]} 59. Kh7 {[%clk 0:00:03.8]} 59... Qh6+ {[%clk
0:00:12.6]} 60. Kg8 {[%clk 0:00:04.7]} 60... g5 {[%clk 0:00:12]} 61. h4 {[%clk
0:00:04.8]} 61... gxh4 {[%clk 0:00:10.9]} 62. Kf7 {[%clk 0:00:05.7]} 62... h3
{[%clk 0:00:10.3]} 63. Kg8 {[%clk 0:00:06.6]} 63... h2 {[%clk 0:00:10.9]} 64.
Kf7 {[%clk 0:00:07.5]} 64... h1=Q {[%clk 0:00:11.3]} 65. Kg8 {[%clk 0:00:06.4]}
65... Qd5# {[%clk 0:00:11.3]} 0-1

[Event "*** SCC Grand Prix: Titled Tuesday Blitz"]
[Site "Chess.com"]
[Date "2020.08.04"]
[Round "3"]
[White "effefe"]
[Black "Bastiandash"]
[Result "0-1"]
[WhiteElo "2082"]
[BlackElo "2314"]
[TimeControl "180+1"]
[EndTime "14:13:59 PDT"]
[Termination "Bastiandash won by checkmate"]

1. d4 {[%clk 0:03:00.9]} 1... Nf6 {[%clk 0:02:57.5]} 2. c4 {[%clk 0:03:01.3]}
2... e6 {[%clk 0:02:57.8]} 3. Nf3 {[%clk 0:03:01]} 3... Bb4+ {[%clk 0:02:58.3]}
4. Nbd2 {[%clk 0:03:01]} 4... d5 {[%clk 0:02:56.2]} 5. a3 {[%clk 0:03:01.5]}
5... Be7 {[%clk 0:02:54.2]} 6. e3 {[%clk 0:03:01.7]} 6... O-O {[%clk 0:02:53.6]}
7. Bd3 {[%clk 0:03:01.6]} 7... a6 {[%clk 0:02:53.3]} 8. b4 {[%clk 0:03:01.5]}
8... dxc4 {[%clk 0:02:53.2]} 9. Bxc4 {[%clk 0:03:01.7]} 9... b5 {[%clk
0:02:53.8]} 10. Bd3 {[%clk 0:03:01.8]} 10... Bb7 {[%clk 0:02:54.4]} 11. Bb2
{[%clk 0:03:02.2]} 11... Nbd7 {[%clk 0:02:54.5]} 12. O-O {[%clk 0:03:02.4]}
12... Nb6 {[%clk 0:02:54.4]} 13. Rc1 {[%clk 0:03:01.9]} 13... Nfd5 {[%clk
0:02:44]} 14. Ne5 {[%clk 0:03:01.2]} 14... g6 {[%clk 0:02:37.4]} 15. Nb3 {[%clk
0:02:54.4]} 15... Na4 {[%clk 0:02:14.7]} 16. Ba1 {[%clk 0:02:50.6]} 16... Bf6
{[%clk 0:02:12.3]} 17. Nc5 {[%clk 0:02:46.5]} 17... Nxc5 {[%clk 0:01:56.5]} 18.
dxc5 {[%clk 0:02:46.7]} 18... Bxe5 {[%clk 0:01:40.4]} 19. Bxe5 {[%clk
0:02:45.7]} 19... Qe7 {[%clk 0:01:41.3]} 20. e4 {[%clk 0:02:33.1]} 20... Nf6
{[%clk 0:01:37.4]} 21. Qf3 {[%clk 0:02:26.3]} 21... Nh5 {[%clk 0:01:26.6]} 22.
g4 {[%clk 0:02:17.8]} 22... Ng7 {[%clk 0:01:25.7]} 23. Bf6 {[%clk 0:02:09.2]}
23... Qd7 {[%clk 0:01:14]} 24. Rcd1 {[%clk 0:01:53.7]} 24... Ne8 {[%clk
0:01:06.5]} 25. g5 {[%clk 0:01:52]} 25... Nxf6 {[%clk 0:00:41.4]} 26. gxf6
{[%clk 0:01:52]} 26... Qd4 {[%clk 0:00:41.4]} 27. Bb1 {[%clk 0:01:41.6]} 27...
Qe5 {[%clk 0:00:36.1]} 28. Rd2 {[%clk 0:01:30.7]} 28... a5 {[%clk 0:00:22.1]}
29. Rfd1 {[%clk 0:01:20.2]} 29... axb4 {[%clk 0:00:21.4]} 30. axb4 {[%clk
0:01:21.1]} 30... Bc6 {[%clk 0:00:20.4]} 31. Qg3 {[%clk 0:01:09]} 31... Qxf6
{[%clk 0:00:14.7]} 32. Qxc7 {[%clk 0:01:09.4]} 32... Rac8 {[%clk 0:00:14]} 33.
Qg3 {[%clk 0:01:06.1]} 33... h5 {[%clk 0:00:12.8]} 34. e5 {[%clk 0:00:54.1]}
34... Qe7 {[%clk 0:00:12.3]} 35. Rd6 {[%clk 0:00:48]} 35... Kg7 {[%clk
0:00:09.4]} 36. Qf4 {[%clk 0:00:43]} 36... Bd5 {[%clk 0:00:07.8]} 37. Be4 {[%clk
0:00:39.8]} 37... Bxe4 {[%clk 0:00:06.1]} 38. Qxe4 {[%clk 0:00:39.8]} 38... Rc7
{[%clk 0:00:06.8]} 39. Kh1 {[%clk 0:00:34.1]} 39... Qg5 {[%clk 0:00:06.2]} 40.
Rg1 {[%clk 0:00:29.6]} 40... Qe7 {[%clk 0:00:05.8]} 41. Qf3 {[%clk 0:00:27]}
41... Ra7 {[%clk 0:00:05.2]} 42. Qxh5 {[%clk 0:00:25]} 42... Rh8 {[%clk
0:00:05.8]} 43. Qg4 {[%clk 0:00:23.9]} 43... Rh4 {[%clk 0:00:05.1]} 44. Qf3
{[%clk 0:00:20.1]} 44... Ra4 {[%clk 0:00:04.3]} 45. c6 {[%clk 0:00:15.9]} 45...
Raxb4 {[%clk 0:00:04.3]} 46. Rd7 {[%clk 0:00:16.2]} 46... Qe8 {[%clk 0:00:03.9]}
47. Rgd1 {[%clk 0:00:14.5]} 47... Rbc4 {[%clk 0:00:03.1]} 48. Qf6+ {[%clk
0:00:14.3]} 48... Kh6 {[%clk 0:00:01.7]} 49. Qxh4+ {[%clk 0:00:14.6]} 49... Rxh4
{[%clk 0:00:01.3]} 50. c7 {[%clk 0:00:13.1]} 50... Qa8+ {[%clk 0:00:01.1]} 51.
Kg1 {[%clk 0:00:12.4]} 51... Rg4+ {[%clk 0:00:01.4]} 52. Kf1 {[%clk 0:00:12.3]}
52... Qh1+ {[%clk 0:00:02.3]} 53. Ke2 {[%clk 0:00:12.7]} 53... Qe4+ {[%clk
0:00:03]} 54. Kf1 {[%clk 0:00:10.2]} 54... Qh1+ {[%clk 0:00:03.4]} 55. Ke2
{[%clk 0:00:10.7]} 55... Re4+ {[%clk 0:00:03.7]} 56. Kd2 {[%clk 0:00:07.7]}
56... Qf3 {[%clk 0:00:03.7]} 57. c8=Q {[%clk 0:00:05.2]} 57... Re2+ {[%clk
0:00:03.9]} 58. Kc1 {[%clk 0:00:04.7]} 58... Qa3+ {[%clk 0:00:04.4]} 59. Kb1
{[%clk 0:00:05.2]} 59... Qb2# {[%clk 0:00:04.8]} 0-1

[Event "*** SCC Grand Prix: Titled Tuesday Blitz"]
[Site "Chess.com"]
[Date "2020.08.04"]
[Round "3"]
[White "PauloCesarCosta_sad"]
[Black "KingCrusher275"]
[Result "0-1"]
[WhiteElo "2229"]
[BlackElo "2414"]
[TimeControl "180+1"]
[EndTime "14:14:02 PDT"]
[Termination "KingCrusher275 won on time"]

1. Nf3 {[%clk 0:03:00.9]} 1... d5 {[%clk 0:02:59.3]} 2. c4 {[%clk 0:02:58.7]}
2... e6 {[%clk 0:02:59.3]} 3. d4 {[%clk 0:02:58.5]} 3... Nf6 {[%clk 0:02:59.8]}
4. Bg5 {[%clk 0:02:56.2]} 4... Be7 {[%clk 0:02:59.2]} 5. e3 {[%clk 0:02:56.2]}
5... Nbd7 {[%clk 0:02:59.2]} 6. Nc3 {[%clk 0:02:56.2]} 6... h6 {[%clk
0:02:58.1]} 7. Bh4 {[%clk 0:02:56.5]} 7... O-O {[%clk 0:02:57.9]} 8. Rc1 {[%clk
0:02:54.9]} 8... c5 {[%clk 0:02:56.3]} 9. cxd5 {[%clk 0:02:47.9]} 9... Nxd5
{[%clk 0:02:47.8]} 10. Bxe7 {[%clk 0:02:28.9]} 10... Nxe7 {[%clk 0:02:38.8]} 11.
dxc5 {[%clk 0:02:27]} 11... Nxc5 {[%clk 0:02:35.6]} 12. Be2 {[%clk 0:02:21.6]}
12... b6 {[%clk 0:02:31.6]} 13. b4 {[%clk 0:02:15.4]} 13... Nd7 {[%clk
0:02:19.6]} 14. O-O {[%clk 0:02:15.4]} 14... Bb7 {[%clk 0:02:17.3]} 15. Qd6
{[%clk 0:02:09.3]} 15... Nf6 {[%clk 0:02:10]} 16. Qe5 {[%clk 0:02:08]} 16... Nc6
{[%clk 0:02:05.5]} 17. Qf4 {[%clk 0:02:01.9]} 17... Qe7 {[%clk 0:01:54]} 18. b5
{[%clk 0:01:51.7]} 18... Na5 {[%clk 0:01:52.3]} 19. Rfd1 {[%clk 0:01:46.5]}
19... Rac8 {[%clk 0:01:49.6]} 20. Ne5 {[%clk 0:01:39.6]} 20... Rfd8 {[%clk
0:01:43.3]} 21. Rxd8+ {[%clk 0:01:33.5]} 21... Rxd8 {[%clk 0:01:28.8]} 22. Rd1
{[%clk 0:01:34.4]} 22... Rxd1+ {[%clk 0:01:23.1]} 23. Nxd1 {[%clk 0:01:34]}
23... Qa3 {[%clk 0:01:14.5]} 24. Bh5 {[%clk 0:01:27]} 24... Bd5 {[%clk
0:00:26.7]} 25. Bxf7+ {[%clk 0:01:26.2]} 25... Kf8 {[%clk 0:00:25.2]} 26. Bg6
{[%clk 0:01:18.8]} 26... Qc1 {[%clk 0:00:24]} 27. Qb4+ {[%clk 0:01:11.7]} 27...
Kg8 {[%clk 0:00:23.4]} 28. Bf7+ {[%clk 0:01:04]} 28... Kh7 {[%clk 0:00:19.5]}
29. Qd4 {[%clk 0:01:04.1]} 29... Nc4 {[%clk 0:00:18.1]} 30. Bg6+ {[%clk
0:00:56.3]} 30... Kg8 {[%clk 0:00:14]} 31. Nxc4 {[%clk 0:00:54.8]} 31... Qxc4
{[%clk 0:00:13.6]} 32. Qxc4 {[%clk 0:00:52.3]} 32... Bxc4 {[%clk 0:00:13.5]} 33.
Nc3 {[%clk 0:00:49.9]} 33... Nd5 {[%clk 0:00:12.5]} 34. Nxd5 {[%clk 0:00:42.9]}
34... exd5 {[%clk 0:00:13]} 35. Be8 {[%clk 0:00:37.5]} 35... Bxa2 {[%clk
0:00:12.8]} 36. Kf1 {[%clk 0:00:36.4]} 36... Kf8 {[%clk 0:00:13.4]} 37. Bc6
{[%clk 0:00:35.6]} 37... Ke7 {[%clk 0:00:14]} 38. Ke2 {[%clk 0:00:35.6]} 38...
Kd6 {[%clk 0:00:14.7]} 39. Kd3 {[%clk 0:00:34.8]} 39... Kc5 {[%clk 0:00:15.2]}
40. f3 {[%clk 0:00:23.7]} 40... Bc4+ {[%clk 0:00:15.6]} 41. Kc3 {[%clk 0:00:21]}
41... Bxb5 {[%clk 0:00:16.1]} 42. Bxb5 {[%clk 0:00:17.3]} 42... Kxb5 {[%clk
0:00:17]} 43. Kd4 {[%clk 0:00:16.5]} 43... Kc6 {[%clk 0:00:17.7]} 44. e4 {[%clk
0:00:16.6]} 44... dxe4 {[%clk 0:00:17.2]} 45. Kxe4 {[%clk 0:00:14.5]} 45... Kd6
{[%clk 0:00:17.7]} 46. f4 {[%clk 0:00:12.2]} 46... Ke6 {[%clk 0:00:18]} 47. g4
{[%clk 0:00:11.9]} 47... a5 {[%clk 0:00:17.5]} 48. h4 {[%clk 0:00:09.3]} 48...
a4 {[%clk 0:00:17.5]} 49. Kd3 {[%clk 0:00:09.5]} 49... b5 {[%clk 0:00:18]} 50.
Kc3 {[%clk 0:00:09.1]} 50... a3 {[%clk 0:00:17.7]} 51. Kb3 {[%clk 0:00:09.2]}
51... b4 {[%clk 0:00:18.1]} 52. g5 {[%clk 0:00:03.4]} 52... hxg5 {[%clk
0:00:17.6]} 53. fxg5 {[%clk 0:00:03.7]} 53... Kf5 {[%clk 0:00:18]} 54. h5 {[%clk
0:00:03.5]} 54... Kxg5 {[%clk 0:00:18.2]} 55. h6 {[%clk 0:00:03.9]} 55... Kxh6
{[%clk 0:00:18.5]} 56. Ka2 {[%clk 0:00:04.5]} 56... g5 {[%clk 0:00:18.9]} 57.
Kb3 {[%clk 0:00:05.4]} 57... g4 {[%clk 0:00:19.5]} 58. Ka2 {[%clk 0:00:06.3]}
58... g3 {[%clk 0:00:20]} 59. Kb3 {[%clk 0:00:07.2]} 59... g2 {[%clk 0:00:20.6]}
60. Ka2 {[%clk 0:00:08.1]} 60... g1=Q {[%clk 0:00:21]} 61. Kb3 {[%clk 0:00:09]}
61... Qe3+ {[%clk 0:00:20.4]} 62. Ka2 {[%clk 0:00:09.9]} 62... Qd2+ {[%clk
0:00:20.7]} 63. Kb3 {[%clk 0:00:10.8]} 63... Qb2+ {[%clk 0:00:21]} 64. Ka4
{[%clk 0:00:11.5]} 64... a2 {[%clk 0:00:21.4]} 65. Kb5 {[%clk 0:00:12.4]} 65...
a1=Q {[%clk 0:00:21.3]} 66. Kc6 {[%clk 0:00:13.3]} 66... Qac1+ {[%clk
0:00:21.5]} 67. Kd7 {[%clk 0:00:14.2]} 67... Qbd2+ {[%clk 0:00:21.9]} 68. Ke8
{[%clk 0:00:05.9]} 68... Qce1+ {[%clk 0:00:22.1]} 69. Kf7 {[%clk 0:00:04.4]}
69... Qdf2+ {[%clk 0:00:22.2]} 0-1